[Event "Titled Tuesday Blitz October 26 2021"]
[White "Vlachos, Anatole"]
[Black "Maksimovic, Bojan"]
[WhiteFideId "26093189"]
[BlackFideId "14408120"]
[WhiteElo "2350"]
[BlackElo "2439"]
[Result "1/2-1/2"]
[Round "11"]
[TimeControl "180+1"]
[Date "2021.10.26"]
[WhiteClock "0:00:17"]
[BlackClock "0:00:13"]

1. e4 {[%clk 0:03:00]}  c5 {[%clk 0:02:59]} 2. Nf3 {[%clk 0:03:00]}  Nc6 {[%clk 0:02:59]} 3. d4 {[%clk 0:03:01]}  cxd4 {[%clk 0:02:59]} 4. Nxd4 {[%clk 0:03:02]}  Nf6 {[%clk 0:03:00]} 5. Nc3 {[%clk 0:03:01]}  e5 {[%clk 0:03:01]} 6. Ndb5 {[%clk 0:02:59]}  h6 {[%clk 0:03:00]} 7. Bc4 {[%clk 0:02:55]}  a6 {[%clk 0:02:51]} 8. Nd6+ {[%clk 0:02:54]}  Bxd6 {[%clk 0:02:51]} 9. Qxd6 {[%clk 0:02:55]}  Qe7 {[%clk 0:02:52]} 10. Qxe7+ {[%clk 0:02:54]}  Kxe7 {[%clk 0:02:53]} 11. Be3 {[%clk 0:02:53]}  d6 {[%clk 0:02:53]} 12. O-O-O {[%clk 0:02:52]}  Be6 {[%clk 0:02:53]} 13. Nd5+ {[%clk 0:02:51]}  Bxd5 {[%clk 0:02:53]} 14. exd5 {[%clk 0:02:48]}  Nb8 {[%clk 0:02:42]} 15. f4 {[%clk 0:02:47]}  Nbd7 {[%clk 0:02:41]} 16. h3 {[%clk 0:02:46]}  Rhc8 {[%clk 0:02:32]} 17. Bb3 {[%clk 0:02:45]}  Nc5 {[%clk 0:02:05]} 18. Rhe1 {[%clk 0:02:10]}  Nxb3+ {[%clk 0:02:01]} 19. axb3 {[%clk 0:02:11]}  Nd7 {[%clk 0:02:00]} 20. g4 {[%clk 0:02:11]}  f6 {[%clk 0:01:58]} 21. h4 {[%clk 0:02:08]}  Kf7 {[%clk 0:01:42]} 22. f5 {[%clk 0:02:04]}  a5 {[%clk 0:01:33]} 23. Kb1 {[%clk 0:02:01]}  a4 {[%clk 0:01:32]} 24. bxa4 {[%clk 0:01:49]}  Rxa4 {[%clk 0:01:33]} 25. Rg1 {[%clk 0:01:39]}  Rca8 {[%clk 0:00:56]} 26. c3 {[%clk 0:01:38]}  Re4 {[%clk 0:00:34]} 27. Bc1 {[%clk 0:01:35]}  Nc5 {[%clk 0:00:31]} 28. Kc2 {[%clk 0:01:26]}  h5 {[%clk 0:00:28]} 29. gxh5 {[%clk 0:01:10]}  Rxh4 {[%clk 0:00:28]} 30. h6 {[%clk 0:01:10]}  gxh6 {[%clk 0:00:24]} 31. Rg6 {[%clk 0:01:10]}  Rh2+ {[%clk 0:00:24]} 32. Rd2 {[%clk 0:01:06]}  Rxd2+ {[%clk 0:00:11]} 33. Bxd2 {[%clk 0:01:07]}  Rh8 {[%clk 0:00:09]} 34. Bxh6 {[%clk 0:01:03]}  Rh7 {[%clk 0:00:09]} 35. b4 {[%clk 0:01:01]}  Ne4 {[%clk 0:00:09]} 36. c4 {[%clk 0:00:55]}  Ng3 {[%clk 0:00:08]} 37. Rxg3 {[%clk 0:00:52]}  Rxh6 {[%clk 0:00:09]} 38. c5 {[%clk 0:00:50]}  Rh4 {[%clk 0:00:08]} 39. cxd6 {[%clk 0:00:43]}  Rd4 {[%clk 0:00:09]} 40. Rd3 {[%clk 0:00:27]}  Rxd3 {[%clk 0:00:08]} 41. Kxd3 {[%clk 0:00:27]}  Ke8 {[%clk 0:00:09]} 42. Kc4 {[%clk 0:00:26]}  Kd7 {[%clk 0:00:09]} 43. b5 {[%clk 0:00:17]}  b6 {[%clk 0:00:08]} 44. Kb4 {[%clk 0:00:13]}  Kxd6 {[%clk 0:00:08]} 45. Kc4 {[%clk 0:00:13]}  e4 {[%clk 0:00:09]} 46. Kd4 {[%clk 0:00:13]}  e3 {[%clk 0:00:10]} 47. Kxe3 {[%clk 0:00:14]}  Kxd5 {[%clk 0:00:10]} 48. Kd3 {[%clk 0:00:12]}  Kc5 {[%clk 0:00:09]} 49. Ke4 {[%clk 0:00:12]}  Kxb5 {[%clk 0:00:10]} 50. Kd5 {[%clk 0:00:13]}  Ka4 {[%clk 0:00:10]} 51. Ke6 {[%clk 0:00:14]}  b5 {[%clk 0:00:10]} 52. Kxf6 {[%clk 0:00:15]}  b4 {[%clk 0:00:11]} 53. Kg7 {[%clk 0:00:14]}  b3 {[%clk 0:00:11]} 54. f6 {[%clk 0:00:15]}  b2 {[%clk 0:00:12]} 55. f7 {[%clk 0:00:16]}  b1=Q {[%clk 0:00:13]} 56. f8=Q {[%clk 0:00:17]}  Qg1+ {[%clk 0:00:12]} 57. Kf7 {[%clk 0:00:16]}  Qf1+ {[%clk 0:00:12]} 58. Ke7 {[%clk 0:00:17]}  Qxf8+ {[%clk 0:00:13]} 59. Kxf8 {[%clk 0:00:17]} 1/2-1/2


[Site "https://www.chess.com"]

[Event "Titled Tuesday Blitz October 26 2021"]
[White "Zhigalko, Sergei"]
[Black "Djordjevic, Vuk"]
[WhiteFideId "13502956"]
[BlackFideId "902098"]
[WhiteElo "2662"]
[BlackElo "2463"]
[Result "1-0"]
[Round "11"]
[TimeControl "180+1"]
[Date "2021.10.26"]
[WhiteClock "0:00:07"]
[BlackClock "0:00:05"]

1. e4 {[%clk 0:03:00]}  e6 {[%clk 0:03:00]} 2. d4 {[%clk 0:03:00]}  d5 {[%clk 0:03:00]} 3. e5 {[%clk 0:03:01]}  c5 {[%clk 0:03:00]} 4. c3 {[%clk 0:03:02]}  Nc6 {[%clk 0:03:01]} 5. Nf3 {[%clk 0:03:02]}  Qb6 {[%clk 0:02:59]} 6. a3 {[%clk 0:03:02]}  Nh6 {[%clk 0:02:58]} 7. b4 {[%clk 0:03:03]}  cxd4 {[%clk 0:02:58]} 8. cxd4 {[%clk 0:03:03]}  Nf5 {[%clk 0:02:58]} 9. Be3 {[%clk 0:03:04]}  f6 {[%clk 0:02:53]} 10. exf6 {[%clk 0:03:04]}  gxf6 {[%clk 0:02:53]} 11. Bd3 {[%clk 0:03:05]}  Nxe3 {[%clk 0:02:52]} 12. fxe3 {[%clk 0:03:06]}  Bh6 {[%clk 0:02:52]} 13. Qe2 {[%clk 0:03:05]}  O-O {[%clk 0:02:50]} 14. Nc3 {[%clk 0:02:54]}  Qc7 {[%clk 0:02:34]} 15. Rc1 {[%clk 0:02:45]}  Qg7 {[%clk 0:02:29]} 16. O-O {[%clk 0:02:40]}  Ne7 {[%clk 0:02:29]} 17. Nb5 {[%clk 0:02:25]}  e5 {[%clk 0:02:18]} 18. Nh4 {[%clk 0:01:42]}  Qg5 {[%clk 0:01:55]} 19. Rc7 {[%clk 0:01:19]}  Bg4 {[%clk 0:00:41]} 20. Bxh7+ {[%clk 0:00:55]}  Kxh7 {[%clk 0:00:27]} 21. Rxe7+ {[%clk 0:00:55]}  Kg8 {[%clk 0:00:22]} 22. Qc2 {[%clk 0:00:15]}  f5 {[%clk 0:00:22]} 23. Rxe5 {[%clk 0:00:04]}  Qxh4 {[%clk 0:00:20]} 24. h3 {[%clk 0:00:05]}  Bh5 {[%clk 0:00:11]} 25. Rfxf5 {[%clk 0:00:05]}  Rxf5 {[%clk 0:00:07]} 26. Qxf5 {[%clk 0:00:06]}  Bf7 {[%clk 0:00:07]} 27. Nd6 {[%clk 0:00:06]}  Rf8 {[%clk 0:00:04]} 28. Nxf7 {[%clk 0:00:01]}  Rxf7 {[%clk 0:00:04]} 29. Re8+ {[%clk 0:00:01]}  Bf8 {[%clk 0:00:04]} 30. Qg6+ {[%clk 0:00:01]}  Rg7 {[%clk 0:00:04]} 31. Qe6+ {[%clk 0:00:01]}  Rf7 {[%clk 0:00:05]} 32. Qg6+ {[%clk 0:00:01]}  Rg7 {[%clk 0:00:04]} 33. Qe6+ {[%clk 0:00:01]}  Rf7 {[%clk 0:00:02]} 34. Qxd5 {[%clk 0:00:02]}  Qe1+ {[%clk 0:00:01]} 35. Kh2 {[%clk 0:00:03]}  Qf2 {[%clk 0:00:02]} 36. Qg5+ {[%clk 0:00:03]}  Rg7 {[%clk 0:00:02]} 37. Qd5+ {[%clk 0:00:03]}  Qf7 {[%clk 0:00:02]} 38. Qxf7+ {[%clk 0:00:03]}  Rxf7 {[%clk 0:00:03]} 39. Ra8 {[%clk 0:00:04]}  Kg7 {[%clk 0:00:03]} 40. Rxa7 {[%clk 0:00:04]}  Bd6+ {[%clk 0:00:04]} 41. Kg1 {[%clk 0:00:04]}  Bg3 {[%clk 0:00:04]} 42. a4 {[%clk 0:00:04]}  Rc7 {[%clk 0:00:05]} 43. Kf1 {[%clk 0:00:03]}  Rc2 {[%clk 0:00:05]} 44. Rxb7+ {[%clk 0:00:03]}  Kf6 {[%clk 0:00:05]} 45. Rb8 {[%clk 0:00:02]}  Rf2+ {[%clk 0:00:05]} 46. Kg1 {[%clk 0:00:02]}  Rc2 {[%clk 0:00:05]} 47. Rf8+ {[%clk 0:00:03]}  Ke6 {[%clk 0:00:06]} 48. Rf3 {[%clk 0:00:03]}  Rc1+ {[%clk 0:00:06]} 49. Rf1 {[%clk 0:00:04]}  Rc3 {[%clk 0:00:06]} 50. Ra1 {[%clk 0:00:03]}  Rxe3 {[%clk 0:00:06]} 51. a5 {[%clk 0:00:04]}  Bb8 {[%clk 0:00:04]} 52. b5 {[%clk 0:00:04]}  Rb3 {[%clk 0:00:03]} 53. b6 {[%clk 0:00:04]}  Kd5 {[%clk 0:00:02]} 54. a6 {[%clk 0:00:04]}  Rxb6 {[%clk 0:00:01]} 55. a7 {[%clk 0:00:05]}  Bxa7 {[%clk 0:00:01]} 56. Rxa7 {[%clk 0:00:06]}  Kxd4 {[%clk 0:00:02]} 57. Re7 {[%clk 0:00:06]}  Kd5 {[%clk 0:00:02]} 58. Kh2 {[%clk 0:00:06]}  Rb3 {[%clk 0:00:03]} 59. Re1 {[%clk 0:00:05]}  Kd6 {[%clk 0:00:04]} 60. h4 {[%clk 0:00:05]}  Kd7 {[%clk 0:00:04]} 61. g3 {[%clk 0:00:05]}  Rc3 {[%clk 0:00:04]} 62. Kh3 {[%clk 0:00:06]}  Rc4 {[%clk 0:00:05]} 63. h5 {[%clk 0:00:06]}  Rc5 {[%clk 0:00:05]} 64. g4 {[%clk 0:00:06]}  Rc2 {[%clk 0:00:05]} 65. Kh4 {[%clk 0:00:07]}  Rc6 {[%clk 0:00:05]} 1-0